bitfinex-derivatives/quotes_ETHF0:USTF0_20251119
["timestamp","ask_amount","ask_price","bid_price","bid_amount"]
[1763580306432,0.0052096,2878.9,2878.8,0.3021]
[1763580307733,0.2829096,2878.9,2878.5,0.1832]
[1763580308330,0.2829096,2878.9,2878.3,0.0052096]
[1763580309032,0.2829096,2878.9,2878.5,0.1832]
[1763580309238,0.2829096,2878.9,2878.3,0.0052096]
[1763580310040,0.2777,2878.4,2878.3,0.0052096]
[1763580310338,0.00391861,2878.4,2878.3,0.3073096]
[1763580312442,0.0052096,2878.9,2878.8,0.3021]
[1763580313043,0.2829096,2878.9,2878.5,0.1832]
[1763580313338,0.28538986,2878.9,2878.5,0.1832]
[1763580314731,0.00768986,2878.9,2878.8,0.3021]
[1763580315341,0.1105,2880.0,2878.8,6.86547]
[1763580315638,0.56318,2879.8,2878.8,0.3021]
[1763580315939,0.1105,2880.0,2878.8,0.86546]
[1763580316135,0.1105,2880.0,2878.8,0.3021]
[1763580316342,0.0052096,2879.7,2878.8,0.3021]
[1763580317936,0.0052096,2879.7,2879.6,0.3021]
[1763580319042,0.00425373,2880.0,2879.9,0.3021]
[1763580320348,0.28195373,2880.0,2879.5,0.1832]
[1763580320538,0.00425373,2880.0,2879.9,0.3021]
[1763580322638,0.28195373,2880.0,2879.5,0.1832]
[1763580323938,0.46065373,2880.0,2879.0,0.1832]
[1763580324839,0.00425373,2880.0,2879.9,0.3021]
[1763580327236,0.28635373,2880.0,2879.5,0.1832]
[1763580327438,0.28635373,2880.0,2879.9,0.2777]
[1763580327940,0.28635373,2880.0,2879.5,0.1832]
[1763580328331,0.44475373,2880.0,2879.5,0.1832]
[1763580328545,0.44475373,2880.0,2879.0,0.1832]
[1763580328546,2.63924421,2879.9,2879.0,0.1832]
[1763580329635,0.56740373,2880.0,2879.0,0.1832]
[1763580330039,0.00425373,2880.0,2879.0,0.74652]
[1763580330240,0.00425373,2880.0,2879.9,0.2777]
[1763580332537,1.10727094,2881.0,2880.1,0.2591]
[1763580332737,1.49145094,2881.3,2880.1,0.2591]
[1763580332942,0.85470213,2881.2,2880.1,0.2591]
[1763580333144,1.49145094,2881.3,2880.1,0.2591]
[1763580333145,0.56288,2881.3,2880.1,0.2591]
[1763580333445,1.10727094,2881.5,2879.5,2.64865987]
[1763580333446,0.2605,2880.2,2879.5,2.64865987]
[1763580333653,0.0052096,2880.1,2880.0,0.4224]
[1763580334950,0.2657096,2880.1,2879.6,0.0052096]
[1763580336049,0.0052096,2880.1,2880.0,0.2591]
[1763580336652,0.2657096,2880.1,2879.6,0.0052096]
[1763580337051,0.2605,2879.7,2879.6,0.0052096]
[1763580337754,0.0052096,2880.1,2879.6,0.2643096]
[1763580339849,0.0052096,2880.1,2880.0,0.2591]
[1763580340051,0.0052096,2880.1,2880.0,0.4224]
[1763580341254,0.0052096,2880.1,2880.0,0.2591]
[1763580341754,0.0052096,2880.1,2880.0,0.4224]
[1763580342053,0.2657096,2880.1,2880.0,0.2591]
[1763580342255,0.2605,2879.7,2879.6,0.0052096]
[1763580342451,0.2605,2879.7,2879.6,0.05276771]
[1763580342752,0.56314,2880.0,2879.6,0.31186771]
[1763580343055,0.2605,2879.7,2879.6,0.31186771]
[1763580343258,0.0052096,2880.1,2879.6,0.31186771]
[1763580343450,0.0052096,2880.1,2879.8,0.04755811]
[1763580343759,0.2605,2879.9,2879.8,0.04755811]
[1763580344646,0.2605,2879.9,2879.8,0.30665811]
[1763580344850,0.2605,2879.9,2879.8,0.04755811]
[1763580345656,0.5683296,2880.1,2880.0,0.2591]
[1763580345657,0.0052096,2880.1,2880.0,0.2591]
[1763580345866,0.0052096,2880.1,2880.0,0.4224]
[1763580346157,0.2657096,2880.1,2879.8,0.04755811]
[1763580346361,0.2657096,2880.1,2879.6,0.0052096]
[1763580346559,0.2657096,2880.1,2880.0,0.2591]
[1763580346763,0.92857094,2880.7,2880.1,0.2591]
[1763580347057,1.84114525,2881.1,2880.1,0.2591]
[1763580347058,0.1646,2881.0,2880.1,0.2591]
[1763580347263,0.85732263,2880.9,2880.1,0.2591]
[1763580347456,0.85732263,2880.8,2880.5,0.21085811]
[1763580347656,0.1646,2881.0,2880.5,0.21085811]
[1763580347858,0.86249847,2880.9,2880.5,0.21085811]
[1763580348061,0.0052096,2880.9,2880.8,0.2591]
[1763580348558,0.0052096,2880.9,2880.8,0.30665811]
[1763580348863,0.2657096,2880.9,2880.8,0.04755811]
[1763580349055,3.46790381,2880.9,2880.8,0.04755811]
[1763580349359,3.76225984,2880.9,2880.8,0.04755811]
[1763580349554,3.76225984,2880.9,2880.8,0.30665811]
[1763580349555,0.86251563,2880.9,2880.8,0.30665811]
[1763580350457,1.12301563,2880.9,2880.8,0.04755811]
[1763580350863,0.56306,2880.4,2879.6,0.0052096]
[1763580351164,1.49502078,2880.4,2879.6,0.0052096]
[1763580351355,0.85730603,2880.3,2879.6,0.0052096]
[1763580351556,0.85730603,2880.2,2879.6,0.0052096]
[1763580351752,1.07236078,2880.5,2879.6,0.0052096]
[1763580351953,0.8565793,2880.4,2879.6,0.0052096]
[1763580352162,0.8565793,2880.3,2879.6,0.0052096]
[1763580352366,0.1404,2880.5,2879.6,0.0052096]
[1763580352661,0.8564767,2880.4,2879.6,0.0052096]
[1763580352861,0.8564767,2880.3,2879.6,0.0052096]
[1763580353058,4.13421499,2880.7,2879.6,0.0052096]
[1763580353260,0.85655823,2880.6,2879.6,0.0052096]
[1763580353459,0.85655823,2880.5,2879.6,0.0052096]
[1763580353656,0.85655823,2880.4,2879.6,0.0052096]
[1763580353856,0.1404,2880.5,2879.6,0.0052096]
[1763580354058,0.85656463,2880.4,2879.6,0.0052096]
[1763580354265,0.1404,2880.5,2879.6,0.0052096]
[1763580354463,0.85659218,2880.4,2879.6,0.0052096]
[1763580354660,0.56305,2880.4,2879.6,0.0052096]
[1763580354864,3.13911817,2880.3,2879.6,0.0052096]
[1763580355065,2.28253659,2880.3,2879.6,0.0052096]
[1763580355759,0.2605,2880.4,2880.0,0.1633]
[1763580356163,2.54303659,2880.1,2879.6,0.0052096]
[1763580357955,0.2605,2879.7,2879.6,0.0052096]
[1763580358568,2.54303659,2879.7,2879.6,0.0052096]
[1763580359866,0.2605,2879.7,2879.6,0.0052096]
[1763580360069,0.1646,2880.0,2879.6,0.0052096]
[1763580360266,0.2605,2879.9,2879.6,0.0052096]
[1763580361363,0.2605,2879.7,2879.6,0.0052096]
[1763580362264,2.54303659,2879.7,2879.6,0.0052096]
[1763580363070,3.3997598,2879.7,2879.6,0.0052096]
[1763580363271,0.81441,2879.6,2879.5,0.00399584]
[1763580363459,1.6709126,2879.6,2879.5,0.00399584]
[1763580363663,0.70343,2879.5,2878.5,0.1633]
[1763580363872,0.8565026,2879.4,2878.5,0.1633]
[1763580364170,0.0052096,2879.2,2879.1,0.2466]
[1763580364468,0.2564096,2879.2,2878.7,0.0052096]
[1763580364667,0.2564096,2879.2,2878.7,0.00959651]
[1763580365979,0.2512,2878.8,2878.7,0.00959651]
[1763580366166,0.25397116,2878.8,2878.7,0.00959651]
[1763580366571,0.00277116,2878.8,2878.7,0.25619651]
[1763580368070,0.25397116,2878.8,2878.7,0.00959651]
[1763580368583,0.00277116,2878.8,2878.7,0.25619651]
[1763580368772,0.25397116,2878.8,2878.7,0.00959651]
[1763580372075,0.25397116,2878.8,2877.5,0.1633]
[1763580372274,0.25397116,2878.8,2877.5,40.9633]
[1763580372672,0.5634,2878.7,2877.5,40.9633]
[1763580372874,0.5634,2878.7,2877.5,0.1633]
[1763580373072,0.5634,2878.7,2877.8,0.0052096]
[1763580373274,2.42273659,2878.5,2877.8,0.0052096]
[1763580373768,2.28253659,2878.5,2877.8,0.0052096]
[1763580373974,0.56341,2878.6,2877.8,0.0052096]
[1763580374771,0.1402,2878.5,2877.8,0.0052096]
[1763580375072,0.56341,2878.6,2877.8,0.0052096]
[1763580375474,0.00277116,2878.8,2877.8,0.0052096]
[1763580377078,0.00277116,2878.8,2878.5,0.1528]
[1763580377079,0.25397116,2878.8,2878.5,0.1528]
[1763580377981,0.25397116,2878.8,2878.0,0.1528]
[1763580378773,2.42273659,2878.5,2878.0,0.1528]
[1763580378975,2.28253659,2878.5,2878.0,0.1528]
[1763580379271,2.28530775,2878.8,2878.0,0.1528]
[1763580379476,2.84867775,2878.8,2878.0,0.1528]
[1763580380488,0.2512,2878.1,2877.8,0.0052096]
[1763580380676,0.2512,2877.9,2877.8,0.0052096]
[1763580382278,0.2512,2877.9,2877.8,0.2518096]
[1763580382477,2.28253659,2878.3,2877.8,0.2518096]
[1763580382777,0.2512,2877.9,2877.8,0.0052096]
[1763580383788,2.53373659,2877.9,2877.8,0.0052096]
[1763580384180,0.2512,2877.9,2877.8,0.0052096]
[1763580387387,0.2512,2877.9,2877.8,0.2420096]
[1763580387688,0.56351,2878.1,2877.8,0.2420096]
[1763580388793,2.84597659,2878.4,2877.8,0.2420096]
[1763580390191,0.1402,2878.5,2876.8,2.55141353]
[1763580390192,0.2379,2877.9,2877.4,0.50344777]
[1763580390383,0.2379,2876.8,2876.3,3.09077431]
[1763580390583,0.2379,2876.8,2876.7,0.2368]
[1763580390787,0.1519,2877.5,2876.7,0.2368]
[1763580391193,0.0052096,2877.4,2876.7,0.24010351]
[1763580391492,0.0052096,2877.4,2876.8,0.0052096]
[1763580392595,2.28253659,2877.3,2876.8,0.2463096]
[1763580392889,0.2365,2876.9,2876.8,0.0052096]
[1763580393101,2.51903659,2876.9,2876.8,0.0052096]
[1763580395299,2.51903659,2876.9,2876.8,9.6e-06]
[1763580395892,0.2365,2876.1,2876.0,0.06049896]
[1763580396192,2.28253659,2876.6,2876.0,0.21419896]
[1763580396794,2.28253659,2876.6,2876.0,0.21940856]
[1763580397098,2.28253659,2876.6,2876.0,0.22374853]
[1763580397099,2.28621723,2876.6,2876.0,0.22374853]
[1763580398696,0.2365,2876.1,2876.0,0.07004853]
[1763580399004,2.28621723,2876.6,2876.0,0.46484853]
[1763580400499,0.2365,2876.1,2876.0,0.00954957]
[1763580402195,0.56385,2876.4,2876.0,0.40434957]
[1763580402395,0.2365,2876.1,2876.0,0.00954957]
[1763580402594,0.80039,2876.1,2876.0,0.00954957]
[1763580403202,2.28621723,2876.6,2876.0,0.40434957]
[1763580403900,0.00368064,2876.6,2876.0,0.40434957]
[1763580404996,0.1456,2876.5,2876.0,0.40434957]
[1763580405409,0.2365,2876.1,2876.0,0.00954957]
[1763580408000,0.1292,2876.0,2875.0,0.0716]
[1763580408200,2.28253659,2875.9,2875.0,0.0716]
[1763580408699,0.70942,2876.5,2875.0,0.0716]
[1763580408899,2.99195659,2876.5,2875.1,4.46732058]
[1763580409110,0.0052096,2876.1,2876.0,0.2411]
[1763580409408,0.2417096,2876.1,2876.0,0.2411]
[1763580409601,0.2417096,2876.1,2875.5,0.1537]
[1763580409799,0.0052096,2876.1,2876.0,0.3948]
[1763580410708,0.00368064,2876.6,2876.5,0.3948]
[1763580412910,0.2365,2876.4,2876.3,0.0052096]
[1763580413109,0.00368064,2876.6,2876.3,0.2463096]
[1763580413409,0.24018064,2876.6,2876.3,0.0052096]
[1763580413613,0.00368064,2876.6,2876.5,0.2411]
[1763580413809,0.00368064,2876.6,2876.5,0.3948]
[1763580416714,0.00368064,2876.6,2876.5,0.2411]
[1763580417608,0.00368064,2876.6,2876.5,0.3948]
[1763580420517,0.2365,2876.4,2876.3,0.0052096]
[1763580420818,0.24018064,2876.6,2876.3,0.0052096]
[1763580421017,0.00368064,2876.6,2876.5,0.3948]
[1763580422718,0.92896852,2878.3,2877.8,0.2404]
[1763580422916,0.92896852,2878.6,2878.1,0.2404]
[1763580423113,0.8657609,2878.5,2878.0,0.1536]
[1763580423423,3.20908317,2878.8,2878.3,0.2404]
[1763580423716,0.00409956,2878.5,2878.4,0.2404]
[1763580425921,0.2514861,2878.8,2878.3,0.0052096]
[1763580426111,0.2423,2878.4,2878.3,0.0052096]
[1763580426924,0.80574,2878.4,2878.3,0.0052096]
[1763580427118,0.2423,2878.1,2877.5,0.1536]
[1763580427624,0.1412,2878.5,2878.0,0.2404]
[1763580428129,0.1412,2878.5,2878.0,0.2497133]
[1763580428425,0.2423,2878.1,2878.0,0.0093133]
[1763580429737,0.8058,2878.1,2878.0,0.0093133]
[1763580432443,0.2423,2878.1,2878.0,0.0093133]
[1763580432738,0.8058,2878.1,2878.0,0.0093133]
[1763580433344,0.1372,2878.0,2877.0,0.1536]
[1763580434347,2.64570317,2878.4,2877.0,0.72007412]
[1763580434741,0.1412,2878.5,2877.0,0.72007412]
[1763580435442,0.56344,2878.4,2877.0,0.72007412]
[1763580435644,0.56344,2878.4,2877.1,0.56368]
[1763580435844,0.0091861,2878.8,2877.1,4.56347524]
[1763580436144,0.0091861,2878.8,2877.6,0.5636]
[1763580436343,0.56339,2878.7,2877.5,0.1536]
[1763580438048,0.70072,2878.0,2877.0,0.15636412]
[1763580438249,2.64570317,2878.3,2877.0,0.15636412]
[1763580438453,0.70463,2878.5,2877.0,0.15636412]
[1763580438747,0.70463,2878.5,2877.0,0.72007412]
[1763580440950,0.70463,2878.5,2877.1,0.5637]
[1763580441337,0.56345,2878.4,2877.1,0.5637]
[1763580441949,0.56346,2878.3,2877.1,0.5637]
[1763580445548,0.56339,2878.7,2877.4,0.56363]
[1763580445748,0.56339,2878.7,2877.5,0.1537]
[1763580446058,0.1409,2878.5,2877.5,0.1537]
[1763580446244,0.70433,2878.5,2877.5,0.1537]
[1763580450456,0.56345,2878.4,2877.5,0.1537]
[1763580450658,0.56347,2878.3,2877.5,0.4021]
[1763580451459,0.92575304,2878.7,2878.2,0.2484]
[1763580451665,0.0091861,2878.8,2878.2,0.2484]
[1763580451868,0.84620782,2878.7,2878.2,0.2484]
[1763580452067,0.0091861,2878.8,2878.2,0.2484]
[1763580452262,0.84684314,2878.7,2878.2,0.2484]
[1763580452567,0.0091861,2878.8,2878.7,0.239]
[1763580452957,0.70445,2879.5,2878.7,0.239]
[1763580453156,0.84704286,2879.4,2878.7,0.239]
[1763580453367,0.84704286,2879.3,2878.7,0.239]
[1763580453566,0.2419,2878.8,2878.7,0.239]
[1763580453766,0.56327,2879.3,2878.7,0.239]
[1763580453967,0.57150424,2879.3,2878.7,0.2442096]
[1763580456962,0.00823424,2879.3,2878.7,0.2442096]
[1763580457164,0.00823424,2879.3,2879.2,0.239]
[1763580457365,0.00823424,2879.3,2879.2,0.24288199]
[1763580459068,0.25013424,2879.3,2879.2,0.00388199]
[1763580460672,0.00823424,2879.3,2879.2,0.24288199]
[1763580461177,0.25013424,2879.3,2879.2,0.00388199]
[1763580461468,0.25013424,2879.3,2879.2,0.24288199]
[1763580461668,0.81340424,2879.3,2879.2,0.00388199]
[1763580461869,0.2419,2878.8,2878.7,0.0052096]
[1763580462273,0.25013424,2879.3,2878.7,0.0052096]
[1763580462462,0.2419,2878.8,2878.7,0.0052096]
[1763580463066,0.2419,2878.8,2878.7,0.00900466]
[1763580468070,0.80527,2878.8,2877.5,2.65124615]
[1763580468573,0.80527,2878.8,2877.5,3.21486615]
[1763580469172,0.80527,2878.8,2877.5,3.21902556]
[1763580469576,0.56339,2878.7,2877.5,3.21902556]
[1763580469775,0.56339,2878.7,2877.5,0.72147941]
[1763580470176,0.1319,2878.5,2877.5,0.72147941]
[1763580470371,0.69534,2878.5,2877.5,0.15785941]
[1763580470972,0.56345,2878.4,2877.5,0.15785941]
[1763580474265,3.70875621,2879.0,2877.5,0.72147941]
[1763580474266,0.56335,2878.9,2877.5,0.72147941]
[1763580474469,0.56335,2878.9,2877.6,2.49754615]
[1763580476082,0.56338,2878.8,2877.6,2.49754615]
[1763580476579,0.56345,2878.4,2877.6,0.239]
[1763580478174,0.1319,2878.5,2877.6,0.239]
[1763580478379,2.78300317,2879.0,2877.6,0.239]
[1763580478580,0.84531591,2878.9,2877.6,0.239]
[1763580478880,0.84531591,2878.8,2877.6,0.239]
[1763580479075,2.42202586,2879.0,2877.6,0.239]
[1763580479282,0.56338,2878.8,2877.6,2.73654615]
[1763580479475,0.56338,2878.8,2877.8,0.56356]
[1763580480972,2.42202586,2879.0,2877.7,2.49754615]
[1763580480973,0.1373,2879.0,2878.0,0.1396]
[1763580481173,0.57150424,2879.3,2878.0,2.63714615]
[1763580482078,0.1375,2879.0,2878.0,2.63714615]
[1763580483579,0.00823424,2879.3,2879.2,0.2441]
[1763580485171,0.26113424,2879.3,2879.0,0.1425]
[1763580485371,0.00823424,2879.3,2879.2,0.2441]
[1763580485880,0.2529,2879.1,2878.6,2.49754615]
[1763580486376,0.2529,2879.1,2879.0,0.3866]
[1763580487783,0.00823424,2879.3,2879.2,0.2441]
[1763580488475,0.2529,2879.1,2879.0,0.1425]
[1763580488678,0.00823424,2879.3,2879.0,0.3866]
[1763580489074,0.00823424,2879.3,2879.2,0.2441]
[1763580489273,0.00823424,2879.3,2879.0,0.1425]
[1763580489274,0.2529,2879.1,2879.0,0.1425]
[1763580489476,0.2529,2879.1,2879.0,0.3866]
[1763580490679,0.00823424,2879.3,2879.2,0.2441]
[1763580491084,0.26113424,2879.3,2879.2,0.2441]
[1763580491580,0.00823424,2879.3,2879.2,0.2441]
[1763580491780,1.48881304,2880.4,2879.2,0.2441]
[1763580491982,0.1319,2880.5,2879.2,0.2441]
[1763580491983,1.40861441,2880.3,2879.2,0.2441]
[1763580492186,0.84554441,2880.2,2879.2,0.2441]
[1763580492389,2.84782586,2880.2,2879.2,0.2441]
[1763580492584,1.05765304,2880.5,2879.2,0.2441]
[1763580492585,0.26079176,2880.5,2880.4,0.2441]
[1763580492887,1.85016786,2882.0,2881.6,0.2441]
[1763580493186,0.00337668,2882.0,2881.9,0.2441]
[1763580493889,0.2529,2881.8,2881.7,0.0052096]
[1763580494483,8.42750254,2882.0,2880.5,0.1425]
[1763580494484,0.56283,2881.6,2880.5,0.1425]
[1763580494686,2.28472586,2881.3,2880.5,0.1425]
[1763580497987,2.28472586,2881.7,2880.5,0.1425]
[1763580498183,2.28472586,2881.9,2880.5,0.1425]
[1763580498389,0.567,2881.8,2880.5,0.1425]
[1763580498787,3.51848586,2881.9,2880.5,0.1425]
[1763580499688,3.54048586,2881.9,2880.5,0.1425]
[1763580499988,0.5628,2881.7,2880.5,0.1425]
[1763580500191,2.97772586,2881.9,2880.4,0.00410694]
[1763580500192,2.84757586,2881.5,2880.4,0.00410694]
[1763580500691,0.2529,2880.5,2880.4,0.00410694]
[1763580501983,0.5628,2881.7,2880.5,0.1425]
[1763580504084,0.5628,2881.7,2880.6,0.5818]
[1763580505489,0.5628,2881.7,2880.6,0.5218]
[1763580505894,0.1342,2881.5,2880.6,0.5218]
[1763580506992,0.56282,2881.6,2880.6,0.5218]
[1763580507183,2.28472586,2881.8,2880.6,0.5218]
[1763580507383,0.567,2881.9,2880.6,0.5218]
[1763580507685,0.14277668,2882.0,2880.6,0.5218]
[1763580507985,0.14277668,2882.0,2881.0,0.1479]
[1763580507986,0.00337668,2882.0,2881.0,0.1479]
[1763580509593,0.00337668,2882.0,2880.6,0.5218]
[1763580509594,0.2567,2881.1,2880.6,0.5218]
[1763580510091,0.2567,2880.7,2880.6,0.5218]
[1763580510292,0.56287,2881.4,2880.6,0.5218]
[1763580510484,0.56287,2881.4,2880.5,0.1425]
[1763580511394,0.70234,2881.0,2880.4,0.00410694]
[1763580511592,2.98177586,2881.5,2880.5,0.1479]
[1763580511797,0.728,2881.4,2880.4,0.00410694]
[1763580512295,0.5629,2881.2,2880.4,0.00410694]
[1763580512483,0.728,2881.4,2880.4,0.00410694]
[1763580512484,0.2441,2880.5,2880.4,0.00410694]
[1763580513198,2.84764586,2881.1,2880.4,0.00410694]
[1763580515094,0.56292,2881.1,2880.5,0.1436]
[1763580515392,0.56292,2881.1,2880.4,0.00410694]
[1763580515597,0.56292,2881.1,2880.5,0.1436]
[1763580517399,0.56281,2881.7,2880.5,0.1436]
[1763580517601,0.81549901,2881.6,2880.5,0.1436]
[1763580517796,0.56281,2881.7,2880.5,0.1436]
[1763580518105,0.81553848,2881.6,2880.5,0.1436]
[1763580518304,0.81578672,2881.5,2880.5,0.1436]
[1763580518500,0.56281,2881.7,2880.5,0.1436]
[1763580518801,0.81586824,2881.6,2880.5,0.1436]
[1763580519100,0.81586824,2881.5,2880.5,0.1436]
[1763580519303,0.56281,2881.7,2880.5,0.1436]
[1763580519496,0.81627897,2881.6,2880.5,0.1436]
[1763580519700,0.1343,2881.5,2880.6,0.56301]
[1763580520103,0.1343,2881.5,2880.5,2.01064659]
[1763580520297,0.1343,2881.5,2880.6,1.86704659]
[1763580520799,0.56281,2881.7,2880.6,1.86704659]
[1763580521401,0.81777048,2881.6,2880.7,1.86704659]
[1763580521600,0.56281,2881.7,2880.7,1.86704659]
[1763580521802,0.81780214,2881.6,2880.7,1.86704659]
[1763580522004,0.56281,2881.7,2880.8,1.86704659]
[1763580522504,0.1343,2881.5,2880.9,0.2573]
[1763580522705,0.1343,2881.5,2880.8,1.86704659]
[1763580522706,0.1343,2881.5,2881.0,0.1436]
[1763580523499,0.56281,2881.7,2881.0,0.1436]
[1763580523694,0.81074656,2881.6,2881.0,0.1436]
[1763580523900,0.56281,2881.7,2881.0,0.1436]
[1763580524100,0.81086848,2881.6,2881.0,0.1436]
[1763580524296,0.81085677,2881.5,2881.0,0.1436]
[1763580524502,0.56281,2881.7,2881.0,0.1436]
[1763580524707,0.81088981,2881.6,2881.0,0.1436]
[1763580525003,0.2441,2881.0,2880.8,1.86704659]
[1763580525209,0.1343,2881.5,2880.8,1.86704659]
[1763580525405,0.81088086,2881.4,2880.8,1.86704659]
[1763580525609,0.56281,2881.7,2880.5,3.19611053]
[1763580525610,0.1668,2880.9,2880.7,1.86704659]
[1763580526009,2.28472586,2881.5,2880.8,0.2573]
[1763580526303,0.81090231,2881.4,2880.8,0.2573]
[1763580526508,2.28472586,2881.5,2880.8,0.2573]
[1763580526509,2.28472586,2881.5,2880.8,2.12434659]
[1763580526709,0.81089904,2881.4,2880.8,2.12434659]
[1763580526901,2.28472586,2881.5,2880.8,2.12434659]
[1763580527101,0.81090211,2881.4,2880.8,2.12434659]
[1763580527307,2.28472586,2881.5,2880.8,2.12434659]
[1763580527512,0.8109256,2881.4,2880.8,2.12434659]
[1763580527718,2.28472586,2881.5,2880.8,2.12434659]
[1763580527904,0.8110395,2881.4,2880.8,2.12434659]
[1763580528211,2.84748586,2881.9,2881.0,0.1436]
[1763580528412,0.81099874,2881.8,2881.0,0.1436]
[1763580528609,0.81099874,2881.7,2881.0,0.1436]
[1763580528810,0.81099874,2881.6,2881.0,0.1436]
[1763580529006,0.81099874,2881.5,2881.0,0.1436]
[1763580529314,2.84748586,2881.9,2881.0,0.1436]
[1763580529509,0.81094789,2881.8,2881.0,0.1436]
[1763580529711,0.81094789,2881.7,2881.0,0.1436]
[1763580530013,0.81094789,2881.6,2881.0,0.1436]
[1763580530311,0.81094789,2881.5,2881.0,0.1436]
[1763580530509,2.84748586,2881.9,2881.0,0.1436]
[1763580530715,0.810963,2881.8,2881.0,0.1436]
[1763580531015,0.810963,2881.7,2881.0,0.1436]
[1763580531201,0.810963,2881.6,2881.0,0.1436]
[1763580531402,0.810963,2881.5,2881.0,0.1436]
[1763580531603,0.56279,2881.8,2881.0,0.1436]
[1763580531804,0.81154226,2881.7,2881.0,0.1436]
[1763580532004,0.81154226,2881.6,2881.0,0.1436]
[1763580532214,0.81154226,2881.5,2881.0,0.1436]
[1763580532514,0.1668,2880.7,2880.6,1.86704659]
[1763580532815,1.23344524,2881.7,2880.6,2.12434659]
[1763580533015,0.81091242,2881.6,2880.7,1.86704659]
[1763580533412,0.81091242,2881.5,2880.7,1.86704659]
[1763580533610,0.81091242,2881.4,2880.7,1.86704659]
[1763580533913,0.56278,2881.8,2880.8,1.86704659]
[1763580534216,0.81084957,2881.7,2880.8,1.86704659]
[1763580534518,0.81084957,2881.6,2880.8,1.86704659]
[1763580534712,0.81084957,2881.5,2881.0,0.1436]
[1763580534914,0.56278,2881.8,2881.0,0.1436]
[1763580535117,0.81088694,2881.7,2881.0,0.1436]
[1763580535312,0.81088694,2881.6,2881.0,0.1436]
[1763580535620,0.81088694,2881.5,2881.0,0.1436]
[1763580535818,0.56278,2881.8,2881.0,0.1436]
[1763580536016,0.81091013,2881.7,2881.0,0.1436]
[1763580536318,0.81091013,2881.6,2881.0,0.1436]
[1763580536516,0.81091013,2881.5,2881.0,0.1436]
[1763580536816,0.56278,2881.8,2881.0,0.1436]
[1763580537020,0.81113153,2881.7,2881.0,0.1436]
[1763580537215,0.81113153,2881.6,2881.0,0.1436]
[1763580537420,0.81113153,2881.5,2881.0,0.1436]
[1763580537725,0.56278,2881.8,2881.0,0.1436]
[1763580538026,0.81118929,2881.7,2881.0,0.1436]
[1763580538212,0.1668,2881.1,2881.0,0.1436]
[1763580538416,0.56281,2881.7,2881.0,0.1436]
[1763580538712,0.81132461,2881.6,2881.0,0.1436]
[1763580538916,0.81132461,2881.5,2881.0,0.1436]
[1763580539217,0.56282,2881.6,2881.0,0.1436]
[1763580539420,0.81148392,2881.5,2881.0,0.1436]
[1763580539625,0.56282,2881.6,2881.0,0.1436]
[1763580539825,0.81145934,2881.5,2881.0,0.1436]
[1763580540027,0.56282,2881.6,2881.0,0.1436]
[1763580540319,0.81144835,2881.5,2881.0,0.1436]
[1763580540620,0.56282,2881.6,2881.0,0.1436]
[1763580540812,1.23682192,2882.0,2881.5,0.1436]
[1763580541015,0.81142684,2881.9,2881.5,0.1436]
[1763580541215,0.00337668,2882.0,2881.8,0.2573]
[1763580541618,0.00337668,2882.0,2881.5,0.1436]
[1763580541919,3.44889528,2881.9,2881.1,1.86704659]
[1763580542125,0.81148427,2881.8,2881.1,1.86704659]
[1763580542325,0.81148427,2881.7,2881.2,1.86704659]
[1763580542526,2.63741101,2881.9,2881.2,1.86704659]
[1763580542720,0.81168156,2881.8,2881.2,1.86704659]
[1763580542920,0.56611668,2882.0,2881.5,0.1426]
[1763580543123,0.81169485,2881.9,2881.5,0.1426]
[1763580543322,0.81169485,2881.8,2881.5,0.1426]
[1763580543524,0.56611668,2882.0,2881.5,0.1426]
[1763580543723,0.81188058,2881.9,2881.5,0.1426]
[1763580543922,0.81188058,2881.8,2881.5,0.1426]
[1763580544126,0.00337668,2882.0,2881.5,0.1426]
[1763580544328,0.81195214,2881.9,2881.5,0.1426]
[1763580544520,0.81195214,2881.8,2881.5,0.1426]
[1763580544723,0.00337668,2882.0,2881.5,0.1426]
[1763580545021,0.81210737,2881.9,2881.5,0.1426]
[1763580545217,0.81210737,2881.8,2881.5,0.1426]
[1763580545420,0.56277,2881.9,2881.5,0.1426]
[1763580545632,0.81196558,2881.8,2881.5,0.1426]
[1763580545825,0.56277,2881.9,2881.5,0.1426]
[1763580546026,0.81197737,2881.8,2881.5,0.1426]
[1763580546223,0.8121346,2881.7,2881.5,0.1426]
[1763580546422,0.56278,2881.8,2881.3,1.86704659]
[1763580546624,0.81219126,2881.7,2881.0,2.01064659]
[1763580546819,0.81219126,2881.6,2880.9,1.86704659]
[1763580547024,0.81219126,2881.6,2880.7,1.86704659]
[1763580547025,0.5629,2881.2,2880.7,1.86704659]
[1763580547233,0.80869126,2881.1,2880.7,1.86704659]
[1763580547525,0.5629,2881.2,2880.6,1.86704659]
[1763580548533,0.56292,2881.1,2880.6,1.86704659]
[1763580548829,0.56292,2881.1,2880.5,2.01064659]
[1763580549031,0.56294,2881.0,2880.5,2.01064659]
[1763580549529,0.56294,2881.0,2880.5,2.52414659]
[1763580549919,0.56294,2881.0,2880.5,0.6571]
[1763580550126,0.56294,2881.0,2880.5,2.52414659]
[1763580550433,0.56294,2881.0,2880.9,0.248]
[1763580550727,0.56294,2881.0,2880.5,2.52414659]
[1763580551124,2.47026717,2882.0,2881.0,0.1426]
[1763580551125,1.79627524,2881.6,2881.0,0.1426]
[1763580551331,1.23344524,2881.7,2881.0,0.1426]
[1763580551530,0.5628,2881.7,2881.0,0.1426]
[1763580551926,0.56282,2881.6,2881.0,0.1426]
[1763580552728,1.49670653,2881.6,2881.0,0.1426]
[1763580552929,0.56288,2881.3,2881.0,0.1426]
[1763580554231,0.93388653,2881.4,2881.1,0.248]
[1763580554435,0.93388653,2881.8,2881.1,0.248]
[1763580554635,1.49669653,2881.7,2881.1,0.248]
[1763580554837,0.93388653,2881.7,2881.1,0.248]
[1763580556537,0.56284,2881.5,2881.1,0.248]
[1763580559337,0.81260393,2881.4,2881.3,0.248]
[1763580559638,0.81260393,2881.4,2881.0,0.1426]
[1763580559839,0.56284,2881.5,2881.0,0.1426]
[1763580560030,0.81255252,2881.4,2881.0,0.1426]
[1763580560231,0.56284,2881.5,2881.0,0.1426]
[1763580560539,0.8124803,2881.4,2881.0,0.1426]
[1763580560740,0.56284,2881.5,2881.0,0.1426]